[Event "SWE-ch Class 1 2019"]
[Site "Eskilstuna"]
[Date "2019.07.08"]
[Round "1.1"]
[White "Bjorkman, Filip"]
[Black "Bernhard, Jonathan"]
[Result "1-0"]
[ECO "C45"]
[WhiteElo "1956"]
[BlackElo "1917"]
[Annotator "NA"]
[PlyCount "133"]
[EventDate "2019.07.06"]
[EventType "tourn"]
[EventCountry "SWE"]
[SourceTitle "playchess.com"]
[Source "ChessBase"]
[SourceQuality "1"]
[TimeControl "40/5400+30:1800+30"]

1. e4 {[%emt 0:00:00]} Nc6 {[%emt 0:00:00]} 2. Nf3 {[%emt 0:00:00]} e5 {[%emt 0:00:00]} 3. d4 {[%emt 0:00:00]} exd4 {[%emt 0:00:00]} 4. Nxd4 {[%emt 0:00:00]} Nf6 {[%emt 0:00:00]} 5. Nxc6 {[%emt 0:00:04]} bxc6 {[%emt 0:00:00]} 6. e5 {[%emt 0:00:10]} Qe7 {[%emt 0:00:02]} 7. Qe2 {[%emt 0:00:05]} Nd5 {[%emt 0:00:08]} 8. c4 {[%emt 0:00:09]} Nb6 {[%emt 0:00:47]} 9. Nc3 {[%emt 0:00:22]} Qe6 {[%emt 0:00:18]} 10. Qe4 {[%emt 0:08:27]} g6 {[%emt 0:01:43]} 11. f4 {[%emt 0:03:24]} Bg7 {[%emt 0:00:52]} 12. c5 {[%emt 0:03:27]} Nd5 {[%emt 0:01:14]} 13. Bc4 {[%emt 0:00:08]} Nxc3 {[%emt 0:01:11]} 14. bxc3 {[%emt 0:00:07]} Qe7 {[%emt 0:00:07]} 15. Be3 {[%emt 0:00:09]} O-O {[%emt 0:01:48]} 16. O-O {[%emt 0:08:31]} Bb7 {[%emt 0:11:29]} 17. Rab1 {[%emt 0:11:18]} d5 {[%emt 0:00:40]} 18. Qf3 {[%emt 0:01:37]} Bc8 {[%emt 0:02:57]} 19. Bd3 {[%emt 0:00:26]} f6 {[%emt 0:06:15]} 20. exf6 {[%emt 0:13:27]} Bxf6 {[%emt 0:00:36]} 21. Bd4 {[%emt 0:00:08]} Qg7 {[%emt 0:01:53]} 22. Qf2 {[%emt 0:01:24]} a5 {[%emt 0:11:23]} 23. g3 {[%emt 0:07:01]} Re8 {[%emt 0:06:22]} 24. Rfe1 {[%emt 0:14:54]} Bf5 {[%emt 0:01:22]} 25. Bxf5 {[%emt 0:07:34]} gxf5 {[%emt 0:02:32]} 26. Bxf6 {[%emt 0:00:16]} Qxf6 {[%emt 0:00:15]} 27. Qd4 {[%emt 0:00:04]} Qxd4+ {[%emt 0:09:18]} 28. cxd4 {[%emt 0:00:08]} Re4 {[%emt 0:00:02]} 29. Rxe4 {[%emt 0:00:11]} dxe4 {[%emt 0:00:08]} 30. Kf2 {[%emt 0:00:08]} Ra7 {[%emt 0:02:17]} 31. Rb8+ {[%emt 0:10:15]} Kf7 {[%emt 0:01:50]} 32. a4 {[%emt 0:00:05]} h5 {[%emt 0:02:30]} 33. Ke3 {[%emt 0:01:24]} Ke6 {[%emt 0:00:55]} 34. h3 {[%emt 0:00:32]} Kd5 {[%emt 0:05:58]} 35. Rf8 {[%emt 0:09:02]} Ke6 {[%emt 0:01:00]} 36. Re8+ {[%emt 0:00:08]} Kf7 {[%emt 0:01:42]} 37. Rb8 {[%emt 0:00:03]} Ke6 {[%emt 0:03:56]} 38. g4 {[%emt 0:00:54]} hxg4 {[%emt 0:01:32]} 39. hxg4 {[%emt 0:00:02]} fxg4 {[%emt 0:00:17]} 40. Kxe4 {[%emt 0:00:08]} Kf6 {[%emt 0:00:11]} 41. f5 {[%emt 0:06:15]} g3 {[%emt 0:01:03]} 42. Rg8 {[%emt 0:00:14]} Rb7 {[%emt 0:01:05]} 43. Rxg3 {[%emt 0:00:07]} Ke7 {[%emt 0:02:01]} 44. Ke5 {[%emt 0:00:53]} Rb1 {[%emt 0:00:51]} 45. Rg7+ {[%emt 0:02:11]} Kd8 {[%emt 0:01:07]} 46. Rg4 {[%emt 0:00:21]} Ke7 {[%emt 0:01:55]} 47. Rg7+ {[%emt 0:02:10]} Kd8 {[%emt 0:00:30]} 48. Kf6 {[%emt 0:01:11]} Rd1 {[%emt 0:04:18]} 49. Rg4 {[%emt 0:00:15]} Rf1 {[%emt 0:00:13]} 50. Ke6 {[%emt 0:01:02]} Re1+ {[%emt 0:00:06]} 51. Kf7 {[%emt 0:00:06]} Rf1 {[%emt 0:00:30]} 52. f6 {[%emt 0:00:28]} Kd7 {[%emt 0:02:05]} 53. Rg5 {[%emt 0:08:33]} Rf4 {[%emt 0:02:41]} 54. Kg7 {[%emt 0:00:14]} Ke6 {[%emt 0:01:42]} 55. Re5+ {[%emt 0:00:07]} Kd7 {[%emt 0:00:02]} 56. Kg6 {[%emt 0:16:35]} Rg4+ {[%emt 0:03:02]} 57. Rg5 {[%emt 0:00:58]} Rxd4 {[%emt 0:00:32]} 58. Kg7 {[%emt 0:00:30]} Ke6 {[%emt 0:02:22]} 59. f7 {[%emt 0:00:22]} Rd7 {[%emt 0:00:32]} 60. Rg6+ {[%emt 0:00:19]} Kd5 {[%emt 0:00:31]} 61. Kg8 {[%emt 0:00:47]} Rxf7 {[%emt 0:00:26]} 62. Kxf7 {[%emt 0:00:01]} Kxc5 {[%emt 0:00:08]} 63. Ke6 {[%emt 0:00:59]} Kb4 {[%emt 0:01:57]} 64. Rg4+ {[%emt 0:00:06]} Kb3 {[%emt 0:00:01]} 65. Ke5 {[%emt 0:00:40]} Ka3 {[%emt 0:00:08]} 66. Rc4 {[%emt 0:00:16]} Kb3 {[%emt 0:00:31]} 67. Kd4 {[%emt 0:00:07]} 1-0

[Event "SWE-ch Class 1 2019"]
[Site "Eskilstuna"]
[Date "2019.07.08"]
[Round "1.1"]
[White "Lofstrom, Bjorn"]
[Black "Andersson, Daniel"]
[Result "*"]
[ECO "C45"]
[WhiteElo "1755"]
[BlackElo "1800"]
[Annotator "NA"]
[PlyCount "44"]
[EventDate "2019.07.06"]
[EventType "tourn"]
[EventCountry "SWE"]
[SourceTitle "playchess.com"]
[Source "ChessBase"]
[SourceQuality "1"]
[TimeControl "40/5400+30:1800+30"]

1. e4 {[%emt 0:00:00]} Nc6 {[%emt 0:00:00]} 2. Nf3 {[%emt 0:00:00]} e5 {[%emt 0:00:00]} 3. d4 {[%emt 0:00:00]} exd4 {[%emt 0:00:00]} 4. Nxd4 {[%emt 0:00:00]} Nf6 {[%emt 0:00:00]} 5. Nxc6 {[%emt 0:00:04]} bxc6 {[%emt 0:00:00]} 6. e5 {[%emt 0:00:10]} Qe7 {[%emt 0:00:02]} 7. Qe2 {[%emt 0:00:05]} Nd5 {[%emt 0:00:08]} 8. c4 {[%emt 0:00:09]} Nb6 {[%emt 0:00:47]} 9. Nc3 {[%emt 0:00:22]} Qe6 {[%emt 0:00:18]} 10. Qe4 {[%emt 0:08:27]} g6 {[%emt 0:01:43]} 11. f4 {[%emt 0:03:24]} Bg7 {[%emt 0:00:52]} 12. c5 {[%emt 0:03:27]} Nd5 {[%emt 0:01:14]} 13. Bc4 {[%emt 0:00:08]} Nxc3 {[%emt 0:01:11]} 14. bxc3 {[%emt 0:00:07]} Qe7 {[%emt 0:00:07]} 15. Be3 {[%emt 0:00:09]} O-O {[%emt 0:01:48]} 16. O-O {[%emt 0:08:31]} Bb7 {[%emt 0:11:29]} 17. Rab1 {[%emt 0:11:18]} d5 {[%emt 0:00:40]} 18. Qf3 {[%emt 0:01:37]} Bc8 {[%emt 0:02:57]} 19. Bd3 {[%emt 0:00:26]} f6 {[%emt 0:06:15]} 20. exf6 {[%emt 0:13:27]} Bxf6 {[%emt 0:00:36]} 21. Bd4 {[%emt 0:00:08]} Qg7 {[%emt 0:01:53]} 22. Qf2 {[%emt 0:01:24]} a5 {[%emt 0:11:23]} *

[Event "SWE-ch Class 1 2019"]
[Site "Eskilstuna"]
[Date "2019.07.08"]
[Round "1.2"]
[White "Attefall, Fredrik"]
[Black "Forsberg, Andre"]
[Result "0-1"]
[ECO "C54"]
[WhiteElo "2077"]
[BlackElo "1982"]
[Annotator "NA"]
[PlyCount "78"]
[EventDate "2019.07.06"]
[EventType "tourn"]
[EventCountry "SWE"]
[SourceTitle "playchess.com"]
[Source "ChessBase"]
[SourceQuality "1"]
[TimeControl "40/5400+30:1800+30"]

1. e4 {[%emt 0:00:00]} e5 {[%emt 0:00:00]} 2. Nf3 {[%emt 0:00:00]} Nc6 {[%emt 0:00:00]} 3. Bc4 {[%emt 0:00:00]} Bc5 {[%emt 0:00:03]} 4. c3 {[%emt 0:00:22]} Nf6 {[%emt 0:00:16]} 5. d4 {[%emt 0:00:10]} exd4 {[%emt 0:00:47]} 6. cxd4 {[%emt 0:00:25]} Bb4+ {[%emt 0:00:16]} 7. Bd2 {[%emt 0:00:18]} Bxd2+ {[%emt 0:00:55]} 8. Nbxd2 {[%emt 0:00:16]} O-O {[%emt 0:01:46]} 9. e5 {[%emt 0:06:13]} d5 {[%emt 0:05:50]} 10. Bd3 {[%emt 0:06:57]} Ng4 {[%emt 0:20:22]} 11. O-O {[%emt 0:10:51]} f6 {[%emt 0:07:07]} 12. h3 {[%emt 0:19:16]} fxe5 {[%emt 0:01:42]} 13. dxe5 {[%emt 0:01:53]} Ngxe5 {[%emt 0:00:57]} 14. Nxe5 {[%emt 0:00:06]} Nxe5 {[%emt 0:00:13]} 15. Bxh7+ {[%emt 0:00:10]} Kxh7 {[%emt 0:00:08]} 16. Qh5+ {[%emt 0:00:05]} Kg8 {[%emt 0:00:07]} 17. Qxe5 {[%emt 0:00:06]} Rf5 {[%emt 0:02:15]} 18. Qe3 {[%emt 0:01:29]} b6 {[%emt 0:05:48]} 19. Nf3 {[%emt 0:03:37]} c5 {[%emt 0:02:43]} 20. Ne5 {[%emt 0:08:26]} Qd6 {[%emt 0:09:47]} 21. f4 {[%emt 0:01:19]} Bb7 {[%emt 0:07:14]} 22. Rae1 {[%emt 0:07:36]} d4 {[%emt 0:05:08]} 23. Qg3 {[%emt 0:00:51]} Rd8 {[%emt 0:10:32]} 24. Ng6 {[%emt 0:05:05]} Rf6 {[%emt 0:06:18]} 25. Ne7+ {[%emt 0:02:33]} Kf8 {[%emt 0:01:24]} 26. Qg5 {[%emt 0:10:30]} Rd7 {[%emt 0:01:31]} 27. Nf5 {[%emt 0:00:51]} Qc6 {[%emt 0:01:16]} 28. Re5 {[%emt 0:02:37]} Rg6 {[%emt 0:00:46]} 29. Nh4 {[%emt 0:03:03]} Rxg5 {[%emt 0:00:51]} 30. fxg5+ {[%emt 0:00:01]} Rf7 {[%emt 0:00:15]} 31. Rfe1 {[%emt 0:01:00]} Kg8 {[%emt 0:05:05]} 32. g6 {[%emt 0:01:03]} Rf8 {[%emt 0:00:10]} 33. Re6 {[%emt 0:00:19]} Qd5 {[%emt 0:01:01]} 34. R1e5 {[%emt 0:00:06]} Qc4 {[%emt 0:01:02]} 35. Re1 {[%emt 0:03:06]} Rf1+ {[%emt 0:01:10]} 36. Kh2 {[%emt 0:00:10]} Rxe1 37. Rxe1 {[%emt 0:00:05]} Kf8 {[%emt 0:01:10]} 38. Nf5 {[%emt 0:00:14]} Qc2 {[%emt 0:00:32]} 39. Nd6 {[%emt 0:00:52]} Qxg2# 0-1

[Event "SWE-ch Class 1 2019"]
[Site "Eskilstuna"]
[Date "2019.07.08"]
[Round "1.2"]
[White "Sahlstrom, Alex"]
[Black "Pinheiro Diamant, Jonatan"]
[Result "*"]
[ECO "C54"]
[WhiteElo "1708"]
[BlackElo "1815"]
[Annotator "NA"]
[PlyCount "37"]
[EventDate "2019.07.06"]
[EventType "tourn"]
[EventCountry "SWE"]
[SourceTitle "playchess.com"]
[Source "ChessBase"]
[SourceQuality "1"]
[TimeControl "40/5400+30:1800+30"]

1. e4 {[%emt 0:00:00]} e5 {[%emt 0:00:00]} 2. Nf3 {[%emt 0:00:00]} Nc6 {[%emt 0:00:00]} 3. Bc4 {[%emt 0:00:00]} Bc5 {[%emt 0:00:03]} 4. c3 {[%emt 0:00:22]} Nf6 {[%emt 0:00:16]} 5. d4 {[%emt 0:00:10]} exd4 {[%emt 0:00:47]} 6. cxd4 {[%emt 0:00:25]} Bb4+ {[%emt 0:00:16]} 7. Bd2 {[%emt 0:00:18]} Bxd2+ {[%emt 0:00:55]} 8. Nbxd2 {[%emt 0:00:16]} O-O {[%emt 0:01:46]} 9. e5 {[%emt 0:06:13]} d5 {[%emt 0:05:50]} 10. Bd3 {[%emt 0:06:57]} Ng4 {[%emt 0:20:22]} 11. O-O {[%emt 0:10:51]} f6 {[%emt 0:07:07]} 12. h3 {[%emt 0:19:16]} fxe5 {[%emt 0:01:42]} 13. dxe5 {[%emt 0:01:53]} Ngxe5 {[%emt 0:00:57]} 14. Nxe5 {[%emt 0:00:06]} Nxe5 {[%emt 0:00:13]} 15. Bxh7+ {[%emt 0:00:10]} Kxh7 {[%emt 0:00:08]} 16. Qh5+ {[%emt 0:00:05]} Kg8 {[%emt 0:00:07]} 17. Qxe5 {[%emt 0:00:06]} Rf5 {[%emt 0:02:15]} 18. Qe3 {[%emt 0:01:29]} b6 {[%emt 0:05:48]} 19. Nf3 {[%emt 0:03:37]} *

[Event "SWE-ch Class 1 2019"]
[Site "Eskilstuna"]
[Date "2019.07.08"]
[Round "1.3"]
[White "Kardell, Mathias"]
[Black "Halvarsson, Peter"]
[Result "1-0"]
[ECO "B34"]
[WhiteElo "2064"]
[BlackElo "1903"]
[Annotator "NA"]
[PlyCount "50"]
[EventDate "2019.07.06"]
[EventType "tourn"]
[EventCountry "SWE"]
[SourceTitle "playchess.com"]
[Source "ChessBase"]
[SourceQuality "1"]
[TimeControl "40/5400+30:1800+30"]

1. e4 {[%emt 0:00:00]} c5 {[%emt 0:00:00]} 2. Nf3 {[%emt 0:00:00]} g6 {[%emt 0:00:00]} 3. d4 {[%emt 0:00:00]} cxd4 {[%emt 0:00:00]} 4. Nxd4 {[%emt 0:00:00]} Bg7 {[%emt 0:00:00]} 5. Nc3 {[%emt 0:00:38]} Nc6 {[%emt 0:00:06]} 6. Be3 {[%emt 0:01:21]} Nf6 {[%emt 0:00:10]} 7. Be2 {[%emt 0:02:30]} O-O {[%emt 0:02:52]} 8. Qd2 {[%emt 0:02:36]} d5 {[%emt 0:06:17]} 9. exd5 {[%emt 0:04:51]} Nxd5 {[%emt 0:02:39]} 10. Nxc6 {[%emt 0:05:49]} bxc6 {[%emt 0:00:33]} 11. Rd1 {[%emt 0:23:22]} Qc7 {[%emt 0:15:46]} 12. Bd4 {[%emt 0:08:41]} Bxd4 {[%emt 0:25:08]} 13. Qxd4 {[%emt 0:00:17]} Nxc3 {[%emt 0:01:32]} 14. Qxc3 {[%emt 0:00:43]} Be6 {[%emt 0:00:19]} 15. a3 {[%emt 0:03:37]} Rad8 {[%emt 0:03:38]} 16. O-O {[%emt 0:01:31]} Qb6 {[%emt 0:08:12]} 17. b4 {[%emt 0:06:05]} Rd6 {[%emt 0:13:46]} 18. Bf3 {[%emt 0:12:15]} Rfd8 {[%emt 0:04:04]} 19. Rde1 {[%emt 0:03:13]} Qb5 {[%emt 0:03:30]} 20. Re5 {[%emt 0:02:14]} Qb6 {[%emt 0:05:10]} 21. h3 {[%emt 0:06:03]} R8d7 {[%emt 0:01:23]} 22. Rfe1 {[%emt 0:03:15]} Rd2 {[%emt 0:01:13]} 23. R1e3 {[%emt 0:02:30]} R7d6 {[%emt 0:03:00]} 24. Rc5 {[%emt 0:01:56]} Qa6 {[%emt 0:02:09]} 25. Rxc6 {[%emt 0:04:20]} Rxc6 {[%emt 0:00:45]} 1-0

[Event "SWE-ch Class 1 2019"]
[Site "Eskilstuna"]
[Date "2019.07.08"]
[Round "1.3"]
[White "Bertelsen, Peter"]
[Black "Ahlqvist, Jesper"]
[Result "*"]
[ECO "B34"]
[WhiteElo "1879"]
[BlackElo "1944"]
[Annotator "NA"]
[PlyCount "23"]
[EventDate "2019.07.06"]
[EventType "tourn"]
[EventCountry "SWE"]
[SourceTitle "playchess.com"]
[Source "ChessBase"]
[SourceQuality "1"]
[TimeControl "40/5400+30:1800+30"]

1. e4 {[%emt 0:00:00]} c5 {[%emt 0:00:00]} 2. Nf3 {[%emt 0:00:00]} g6 {[%emt 0:00:00]} 3. d4 {[%emt 0:00:00]} cxd4 {[%emt 0:00:00]} 4. Nxd4 {[%emt 0:00:00]} Bg7 {[%emt 0:00:00]} 5. Nc3 {[%emt 0:00:38]} Nc6 {[%emt 0:00:06]} 6. Be3 {[%emt 0:01:21]} Nf6 {[%emt 0:00:10]} 7. Be2 {[%emt 0:02:30]} O-O {[%emt 0:02:52]} 8. Qd2 {[%emt 0:02:36]} d5 {[%emt 0:06:17]} 9. exd5 {[%emt 0:04:51]} Nxd5 {[%emt 0:02:39]} 10. Nxc6 {[%emt 0:05:49]} bxc6 {[%emt 0:00:33]} 11. Rd1 {[%emt 0:23:22]} Qc7 {[%emt 0:15:46]} 12. Bd4 {[%emt 0:08:41]} *

[Event "SWE-ch Class 1 2019"]
[Site "Eskilstuna"]
[Date "2019.07.08"]
[Round "1.4"]
[White "Lyngsjo, Hakan"]
[Black "Nordstrom, Felix"]
[Result "1/2-1/2"]
[ECO "B52"]
[WhiteElo "2029"]
[BlackElo "2064"]
[Annotator "NA"]
[PlyCount "36"]
[EventDate "2019.07.06"]
[EventType "tourn"]
[EventCountry "SWE"]
[SourceTitle "playchess.com"]
[Source "ChessBase"]
[SourceQuality "1"]
[TimeControl "40/5400+30:1800+30"]

1. e4 {[%emt 0:00:00]} c5 {[%emt 0:00:00]} 2. Nf3 {[%emt 0:00:09]} d6 {[%emt 0:01:31]} 3. Bb5+ {[%emt 0:00:09]} Bd7 {[%emt 0:00:07]} 4. Bxd7+ {[%emt 0:00:05]} Qxd7 {[%emt 0:00:01]} 5. O-O {[%emt 0:00:39]} Nc6 {[%emt 0:00:22]} 6. b3 {[%emt 0:02:48]} Nf6 {[%emt 0:01:45]} 7. Re1 {[%emt 0:01:32]} g6 {[%emt 0:02:56]} 8. Bb2 {[%emt 0:04:37]} Bg7 {[%emt 0:00:35]} 9. c4 {[%emt 0:03:02]} e5 {[%emt 0:04:25]} 10. Nc3 {[%emt 0:02:26]} O-O {[%emt 0:00:47]} 11. d3 {[%emt 0:07:25]} Nd4 {[%emt 0:05:12]} 12. Nxd4 {[%emt 0:06:28]} cxd4 {[%emt 0:03:52]} 13. Nd5 {[%emt 0:01:39]} Nxd5 {[%emt 0:00:55]} 14. cxd5 {[%emt 0:00:06]} Bh6 {[%emt 0:02:34]} 15. Bc1 {[%emt 0:00:08]} Bxc1 {[%emt 0:01:17]} 16. Rxc1 {[%emt 0:00:06]} f5 {[%emt 0:07:39]} 17. f3 {[%emt 0:01:29]} Rac8 {[%emt 0:03:36]} 18. Qd2 {[%emt 0:01:17]} a6 {[%emt 0:05:56]} 1/2-1/2

[Event "SWE-ch Class 1 2019"]
[Site "Eskilstuna"]
[Date "2019.07.08"]
[Round "1.5"]
[White "Magnussen, Pal"]
[Black "Grundel, Sam"]
[Result "1-0"]
[ECO "B30"]
[WhiteElo "1985"]
[BlackElo "2069"]
[Annotator "NA"]
[PlyCount "87"]
[EventDate "2019.07.06"]
[EventType "tourn"]
[EventCountry "SWE"]
[SourceTitle "playchess.com"]
[Source "ChessBase"]
[SourceQuality "1"]
[TimeControl "40/5400+30:1800+30"]

1. e4 {[%emt 0:00:00]} c5 {[%emt 0:00:00]} 2. Nf3 {[%emt 0:00:00]} e6 {[%emt 0:00:03]} 3. d3 {[%emt 0:00:58]} Nc6 {[%emt 0:00:30]} 4. Nbd2 {[%emt 0:00:33]} Nf6 {[%emt 0:00:43]} 5. g3 {[%emt 0:01:08]} Be7 {[%emt 0:00:56]} 6. Bg2 {[%emt 0:00:51]} O-O {[%emt 0:00:23]} 7. O-O {[%emt 0:01:55]} Qc7 {[%emt 0:01:56]} 8. Re1 {[%emt 0:12:11]} d6 {[%emt 0:04:57]} 9. a4 {[%emt 0:03:23]} b6 {[%emt 0:04:23]} 10. Nc4 {[%emt 0:03:41]} Bb7 {[%emt 0:02:18]} 11. Bf4 {[%emt 0:16:55]} Rfd8 {[%emt 0:04:10]} 12. c3 {[%emt 0:11:24]} Rac8 {[%emt 0:04:49]} 13. Qb3 {[%emt 0:10:21]} Nh5 {[%emt 0:09:17]} 14. Be3 {[%emt 0:04:53]} Ba6 {[%emt 0:00:48]} 15. Rad1 {[%emt 0:01:36]} Rb8 {[%emt 0:14:25]} 16. Na3 {[%emt 0:02:21]} d5 {[%emt 0:05:41]} 17. exd5 {[%emt 0:02:34]} Rxd5 {[%emt 0:01:04]} 18. Nb5 {[%emt 0:01:45]} Qd8 {[%emt 0:06:21]} 19. d4 {[%emt 0:06:08]} Na5 {[%emt 0:07:20]} 20. Qc2 {[%emt 0:01:30]} Bxb5 {[%emt 0:00:35]} 21. axb5 {[%emt 0:00:46]} c4 {[%emt 0:00:39]} 22. Ne5 {[%emt 0:02:13]} Rd6 {[%emt 0:04:21]} 23. Qe2 {[%emt 0:00:21]} g6 {[%emt 0:01:58]} 24. Nxc4 {[%emt 0:00:25]} Nxc4 {[%emt 0:00:35]} 25. Qxc4 {[%emt 0:00:03]} e5 {[%emt 0:07:12]} 26. Ra1 {[%emt 0:00:46]} exd4 {[%emt 0:02:08]} 27. Bxd4 {[%emt 0:00:25]} Rd7 {[%emt 0:00:25]} 28. Qe2 {[%emt 0:02:22]} Bf6 {[%emt 0:00:59]} 29. Be3 {[%emt 0:02:26]} Qc7 {[%emt 0:02:12]} 30. Qf3 {[%emt 0:00:47]} Bg7 {[%emt 0:02:27]} 31. g4 {[%emt 0:00:39]} Nf6 {[%emt 0:01:19]} 32. Bf4 {[%emt 0:00:14]} Qd8 {[%emt 0:00:44]} 33. Bxb8 {[%emt 0:00:38]} Qxb8 {[%emt 0:00:08]} 34. g5 {[%emt 0:01:01]} Nh5 {[%emt 0:00:57]} 35. Qe3 {[%emt 0:02:02]} Qc7 {[%emt 0:00:51]} 36. Rad1 {[%emt 0:01:56]} Rxd1 {[%emt 0:01:02]} 37. Rxd1 {[%emt 0:00:02]} Nf4 {[%emt 0:00:19]} 38. Bc6 {[%emt 0:00:54]} Ne6 {[%emt 0:00:29]} 39. Rd7 {[%emt 0:01:21]} Qb8 {[%emt 0:00:31]} 40. h4 {[%emt 0:01:31]} Nc5 {[%emt 0:01:44]} 41. Re7 {[%emt 0:31:10]} Bf8 {[%emt 0:30:14]} 42. Rxf7 Kxf7 {[%emt 0:02:16]} 43. Bd5+ {[%emt 0:01:33]} Kg7 {[%emt 0:00:46]} 44. Qd4+ {[%emt 0:00:08]} 1-0

[Event "SWE-ch Class 1 2019"]
[Site "Eskilstuna"]
[Date "2019.07.08"]
[Round "1.6"]
[White "Jonsson, Krister"]
[Black "Thollin, Robert"]
[Result "1/2-1/2"]
[ECO "A81"]
[WhiteElo "2068"]
[BlackElo "1983"]
[Annotator "NA"]
[PlyCount "86"]
[EventDate "2019.07.06"]
[EventType "tourn"]
[EventCountry "SWE"]
[SourceTitle "playchess.com"]
[Source "ChessBase"]
[SourceQuality "1"]
[TimeControl "40/5400+30:1800+30"]

1. d4 {[%emt 0:00:00]} e6 {[%emt 0:00:00]} 2. g3 {[%emt 0:00:19]} f5 {[%emt 0:00:00]} 3. Bg2 {[%emt 0:00:06]} Nf6 {[%emt 0:00:00]} 4. Nh3 {[%emt 0:00:46]} Nc6 {[%emt 0:05:27]} 5. O-O {[%emt 0:07:11]} Be7 {[%emt 0:06:24]} 6. c4 {[%emt 0:02:29]} e5 {[%emt 0:12:04]} 7. d5 {[%emt 0:09:36]} Nb8 {[%emt 0:03:18]} 8. Nc3 {[%emt 0:01:03]} Bb4 {[%emt 0:07:43]} 9. Qc2 {[%emt 0:04:15]} Bxc3 {[%emt 0:03:12]} 10. Qxc3 {[%emt 0:00:19]} d6 {[%emt 0:02:23]} 11. Rd1 {[%emt 0:14:20]} h6 {[%emt 0:15:06]} 12. f3 {[%emt 0:04:12]} O-O {[%emt 0:00:46]} 13. Nf2 {[%emt 0:00:31]} a5 {[%emt 0:09:53]} 14. b3 {[%emt 0:02:52]} Nbd7 {[%emt 0:01:15]} 15. a3 {[%emt 0:01:26]} Qe7 {[%emt 0:02:22]} 16. Bb2 {[%emt 0:05:15]} Nc5 {[%emt 0:02:25]} 17. Nd3 {[%emt 0:09:20]} Nfd7 {[%emt 0:06:29]} 18. Nf2 {[%emt 0:14:32]} Rf7 {[%emt 0:03:08]} 19. Qc2 {[%emt 0:00:50]} a4 {[%emt 0:01:58]} 20. b4 {[%emt 0:01:13]} Nb3 {[%emt 0:00:08]} 21. Rab1 {[%emt 0:00:34]} b6 {[%emt 0:03:49]} 22. e3 {[%emt 0:01:07]} Ba6 {[%emt 0:02:25]} 23. Nd3 {[%emt 0:02:40]} Re8 {[%emt 0:00:15]} 24. Nc1 {[%emt 0:04:02]} Nxc1 {[%emt 0:00:10]} 25. Rbxc1 {[%emt 0:00:03]} Rb8 {[%emt 0:05:04]} 26. Bf1 {[%emt 0:01:51]} Qg5 {[%emt 0:03:49]} 27. f4 {[%emt 0:02:13]} Qg4 {[%emt 0:01:07]} 28. Kg2 {[%emt 0:06:06]} Bb7 {[%emt 0:01:33]} 29. Be2 {[%emt 0:00:15]} Qg6 {[%emt 0:00:09]} 30. Qxa4 {[%emt 0:00:38]} Ra8 {[%emt 0:00:30]} 31. Qb3 {[%emt 0:01:08]} Re8 {[%emt 0:01:14]} 32. Bf3 {[%emt 0:00:23]} exf4 33. exf4 {[%emt 0:00:13]} Rfe7 {[%emt 0:00:27]} 34. Bd4 {[%emt 0:00:45]} Nf6 {[%emt 0:00:47]} 35. Qc3 {[%emt 0:02:53]} Ne4 36. Bxe4 {[%emt 0:01:01]} Rxe4 {[%emt 0:00:33]} 37. Re1 {[%emt 0:00:10]} Qg4 {[%emt 0:00:02]} 38. Bf2 {[%emt 0:01:00]} Qg6 {[%emt 0:02:27]} 39. Rxe4 {[%emt 0:00:15]} Rxe4 {[%emt 0:00:04]} 40. Re1 {[%emt 0:01:13]} Qe8 {[%emt 0:00:33]} 41. Kf1 {[%emt 0:07:04]} b5 {[%emt 0:07:33]} 42. Rxe4 {[%emt 0:04:36]} Qxe4 {[%emt 0:01:47]} 43. cxb5 {[%emt 0:01:10]} Bxd5 {[%emt 0:04:59]} 1/2-1/2

[Event "SWE-ch Class 1 2019"]
[Site "Eskilstuna"]
[Date "2019.07.08"]
[Round "1.7"]
[White "Carlsson, Gustav"]
[Black "Willinger, Tim"]
[Result "1-0"]
[ECO "A26"]
[WhiteElo "1982"]
[BlackElo "2053"]
[Annotator "NA"]
[PlyCount "83"]
[EventDate "2019.07.06"]
[EventType "tourn"]
[EventCountry "SWE"]
[SourceTitle "playchess.com"]
[Source "ChessBase"]
[SourceQuality "1"]
[TimeControl "40/5400+30:1800+30"]

1. c4 {[%emt 0:00:00]} e5 {[%emt 0:00:00]} 2. g3 {[%emt 0:00:00]} Nc6 {[%emt 0:00:15]} 3. Bg2 {[%emt 0:00:00]} g6 {[%emt 0:00:14]} 4. Nc3 {[%emt 0:00:09]} Bg7 {[%emt 0:00:17]} 5. e4 {[%emt 0:00:22]} d6 {[%emt 0:00:45]} 6. d3 {[%emt 0:00:15]} Nge7 {[%emt 0:01:05]} 7. Nge2 {[%emt 0:00:52]} O-O {[%emt 0:00:22]} 8. O-O {[%emt 0:00:09]} Be6 {[%emt 0:00:25]} 9. Nd5 {[%emt 0:00:34]} Qd7 {[%emt 0:01:43]} 10. Bh6 {[%emt 0:01:11]} Nd8 {[%emt 0:12:47]} 11. Bxg7 {[%emt 0:11:12]} Kxg7 {[%emt 0:00:07]} 12. Nxe7 {[%emt 0:00:38]} Qxe7 {[%emt 0:00:12]} 13. f4 {[%emt 0:00:31]} Bg4 {[%emt 0:05:17]} 14. f5 {[%emt 0:03:24]} Qg5 {[%emt 0:05:48]} 15. Qc1 {[%emt 0:38:11]} Qxc1 {[%emt 0:11:26]} 16. Nxc1 {[%emt 0:01:18]} gxf5 {[%emt 0:00:45]} 17. exf5 {[%emt 0:00:54]} f6 {[%emt 0:00:37]} 18. h3 {[%emt 0:00:22]} Bh5 {[%emt 0:00:10]} 19. b4 {[%emt 0:02:48]} a5 {[%emt 0:24:30]} 20. Rb1 {[%emt 0:07:48]} axb4 {[%emt 0:00:59]} 21. Rxb4 {[%emt 0:00:15]} c6 {[%emt 0:01:47]} 22. Rf2 {[%emt 0:04:29]} Ra7 {[%emt 0:06:38]} 23. Rfb2 {[%emt 0:02:08]} Be8 {[%emt 0:01:30]} 24. Ne2 {[%emt 0:02:00]} Bd7 {[%emt 0:00:14]} 25. g4 {[%emt 0:00:25]} Kf7 {[%emt 0:07:13]} 26. Nc3 {[%emt 0:04:25]} Ke7 {[%emt 0:00:39]} 27. Ne4 {[%emt 0:02:36]} Bc8 {[%emt 0:00:25]} 28. Kf2 {[%emt 0:05:17]} Nf7 {[%emt 0:01:56]} 29. Bf3 {[%emt 0:01:24]} Ng5 {[%emt 0:04:04]} 30. Nxg5 {[%emt 0:02:36]} fxg5 {[%emt 0:00:06]} 31. Ke3 {[%emt 0:00:29]} Kf6 {[%emt 0:05:33]} 32. R4b3 {[%emt 0:01:48]} Re8 {[%emt 0:02:13]} 33. a3 {[%emt 0:01:11]} Re7 {[%emt 0:00:41]} 34. Rh2 {[%emt 0:01:08]} h5 {[%emt 0:02:09]} 35. gxh5 {[%emt 0:03:42]} Bxf5 {[%emt 0:00:16]} 36. Rf2 {[%emt 0:00:14]} Ke6 {[%emt 0:01:41]} 37. Bg4 {[%emt 0:00:25]} Rf7 {[%emt 0:00:30]} 38. Rbb2 {[%emt 0:01:20]} b5 {[%emt 0:01:37]} 39. Rxf5 {[%emt 0:01:09]} Rxf5 {[%emt 0:00:10]} 40. Rf2 {[%emt 0:00:20]} Raf7 {[%emt 0:00:25]} 41. cxb5 {[%emt 0:31:11]} cxb5 {[%emt 0:06:33]} 42. h6 {[%emt 0:00:00]} 1-0